[Event "Romanian-ch Youth Open U14 2024"]
[Site "Eforie Nord"]
[Date "2024.04.17"]
[Round "7.2"]
[White "Tanasie, Cosmin"]
[Black "Dodoi, Matei-Teodor"]
[Result "1-0"]
[ECO "D00"]
[WhiteElo "2017"]
[BlackElo "2070"]
[Annotator "TA"]
[PlyCount "129"]
[EventDate "2024.04.10"]
[EventType "swiss"]
[EventCountry "ROU"]
[SourceTitle "playchess.com"]
[Source "ChessBase"]
[SourceQuality "1"]
[TimeControl "5400+30"]

{[%evp 24,129,75,0,0,7,0,1,8,0,0,-13,0,4,0,0,20,0,0,0,0,0,0,0,0,0,0,0,0,0,-4,0,0,0,0,0,6,-2,-15,-12,0,0,0,-5,-8,-10,0,0,0,0,0,0,0,-8,0,0,0,0,0,0,35,35,35,35,337,336,331,331,346,324,289,242,241,200,388,377,400,400,380,363,272,256,354,0,376,292,304,295,1173,1159,1037,868,731,13,13,21,1862,1611,12793,12793,29985,29986,29985,29987,29987,29988,29988,29988]} 1. d4 {[%emt 0:00:06]} Nf6 {[%emt 0:00:19]} 2. Bf4 {[%emt 0:00:05]} d5 {[%emt 0:00:17]} 3. e3 {[%emt 0:00:07]} g6 {[%emt 0:00:59]} 4. Nc3 {[%emt 0:00:27]} Bg7 {[%emt 0:00:21]} 5. Nb5 {[%emt 0:00:19]} Na6 {[%emt 0:00:35]} 6. h3 {[%emt 0:00:06] D00: 1 d4 d5: Unusual lines.} c6 {[%emt 0:01:29]} 7. Na3 {[%emt 0:01:42]} Nc7 {[%emt 0:01:33]} 8. Nf3 {[%emt 0:00:27]} O-O {[%emt 0:01:40]} 9. Bd3 {[%emt 0:00:12]} Re8 {[%emt 0:06:53]} 10. O-O {[%emt 0:00:30]} Ne4 {[%emt 0:05:03]} 11. c4 $146 {[%emt 0:01:46]} ({Predecessor:} 11. c3 Bd7 12. Nb1 h6 13. Nbd2 Nxd2 14. Qxd2 c5 15. Rfe1 b6 16. Rad1 Kh7 17. Bb1 {1-0 Al Saffar,A (2382)-Nurmanova,A (2026) Titled Tuesday intern op 01st Sept blitz 2020 (9)}) 11... Bf5 {[%emt 0:05:54]} 12. cxd5 {[%emt 0:01:04]} cxd5 {[%emt 0:03:26]} 13. Qb3 {[%emt 0:00:44]} (13. Rc1 $16 Rc8 14. Qb3) 13... Ne6 $11 {[%emt 0:09:38]} 14. Be5 {[%emt 0:19:49]} (14. Qxb7 $2 N4c5 15. dxc5 Nxc5 $19 (15... Bxd3 16. Rfe1 $17)) 14... Bxe5 {[%emt 0:17:59]} 15. Bxe4 $1 {[%emt 0:00:07]} Bxe4 {[%emt 0:01:34]} 16. Nxe5 {[%emt 0:00:01]} f6 {[%emt 0:02:38]} 17. Ng4 {[%emt 0:04:17]} Qb6 {[%emt 0:03:00]} 18. f3 {[%emt 0:03:12]} Qxb3 19. axb3 {[%emt 0:00:01]} Bf5 {[%emt 0:03:20]} 20. Nf2 {[%emt 0:01:01]} g5 {[%emt 0:01:07]} 21. Nb5 {[%emt 0:01:51]} a6 {[%emt 0:01:05]} 22. Nc3 {[%emt 0:00:01]} Red8 {[%emt 0:01:10]} 23. Ra5 {[%emt 0:00:47]} Nc7 {[%emt 0:02:27]} 24. Rc5 {[%emt 0:01:51]} Rac8 {[%emt 0:01:29]} 25. Rc1 {[%emt 0:05:40]} Ne6 {[%emt 0:07:19]} 26. Rxc8 {[%emt 0:00:07]} (26. Rxd5 $2 {too greedy.} Rxd5 27. Rf1 Rd6 $19) ({But not} 26. Nxd5 Rxc5 (26... Nxc5 27. Nxe7+ Kf8 28. Nxc8 $11) 27. Rxc5 Nxc5 28. Nxe7+ Kf7 29. Nxf5 Nxb3 $17) 26... Rxc8 {[%emt 0:00:06]} 27. Kf1 {[%emt 0:01:14]} (27. g4 $5 Bg6 $8 28. Ra1 $11) 27... Nf8 {[%emt 0:05:02]} 28. Ke2 {[%emt 0:01:27]} Nd7 {[%emt 0:01:09]} 29. Kd2 {[%emt 0:00:55]} Nb6 {[%emt 0:01:20]} 30. Na4 {[%emt 0:01:59]} Rxc1 {[%emt 0:01:10]} 31. Kxc1 {[%emt 0:00:02]} Nxa4 32. bxa4 {[%emt 0:00:01]} Kf7 {[%emt 0:02:03]} 33. b4 {[%emt 0:01:18]} Bd7 {[%emt 0:01:27]} 34. a5 {[%emt 0:00:50]} Bb5 {[%emt 0:00:06]} 35. Kd2 {[%emt 0:01:01]} Bf1 {[%emt 0:01:58]} 36. g3 $1 {[%emt 0:00:06]} e5 {[%emt 0:02:12]} 37. f4 {[%emt 0:07:29]} gxf4 {[%emt 0:01:53]} 38. gxf4 {[%emt 0:01:49]} e4 {[%emt 0:02:00]} 39. Ke1 {[%emt 0:01:15]} Bg2 {[%emt 0:00:49]} 40. h4 {[%emt 0:06:37]} Kg6 {[%emt 0:05:55]} 41. Nd1 {[%emt 0:00:12]} Bh3 {[%emt 0:00:25]} 42. Nc3 {[%emt 0:00:10]} Be6 {[%emt 0:00:19]} 43. Kf2 {[%emt 0:00:04]} Kf7 $2 {[%emt 0:01:18][%mdl 8192]} ({Black should try} 43... h6 $14) 44. f5 $1 $18 {[%emt 0:00:09]} Bxf5 {[%emt 0:00:52]} 45. Nxd5 {[%emt 0:00:01]} Ke6 {[%emt 0:00:48]} 46. Nc3 {[%emt 0:00:09]} Bg6 {[%emt 0:00:30]} 47. Kg3 {[%emt 0:00:16]} Kf5 {[%emt 0:00:35]} 48. b5 {[%emt 0:01:28]} Be8 $2 {[%emt 0:00:39]} (48... Bf7 49. bxa6 bxa6) 49. bxa6 $18 {[%emt 0:00:24]} bxa6 {[%emt 0:00:05]} 50. Nd5 {[%emt 0:00:19]} Bb5 {[%emt 0:00:56]} 51. Nc7 {[%emt 0:00:45]} Bc4 {[%emt 0:00:33]} 52. Ne8 {[%emt 0:00:21]} Bd3 {[%emt 0:00:21]} 53. Ng7+ {[%emt 0:00:24]} Kg6 {[%emt 0:00:12] [#]} 54. Ne6 $1 {[%emt 0:00:36]} Kf5 {[%emt 0:00:07]} 55. Nf8 {[%emt 0:05:02]} Bb5 $2 {[%emt 0:01:16] [#]} (55... h6 56. Nd7 Bc4) 56. d5 $1 $18 {[%emt 0:00:17]} ({Worse is} 56. Nxh7 Kg6 57. Kf4 (57. Nf8+ Kf7 $11) 57... Kxh7 $11) 56... Ke5 {[%emt 0:00:27]} 57. Nxh7 {[%emt 0:00:07]} Be8 {[%emt 0:00:40]} 58. Kg4 $2 {[%emt 0:00:27]} (58. d6 $18) 58... Bd7+ $1 $11 {[%emt 0:00:26]} 59. Kh5 {[%emt 0:00:25]} Bf5 $2 {[%emt 0:00:26][%mdl 8192]} (59... Be8+ $11 60. Kh6 f5) 60. d6 $18 {[%emt 0:00:40]} Kxd6 {[%emt 0:00:34]} 61. Nxf6 {[%emt 0:00:01]} Kc5 {[%emt 0:00:34]} 62. Kg5 {[%emt 0:00:01]} Be6 {[%emt 0:00:27]} 63. h5 {[%emt 0:00:00]} Kc4 {[%emt 0:00:33]} 64. h6 {[%emt 0:00:02]} Kd3 {[%emt 0:00:25]} 65. h7 {[%emt 0:00:01]} 1-0

[Event "Romanian-ch Youth Open U14 2024"]
[Site "Eforie Nord"]
[Date "2024.04.18"]
[Round "8.1"]
[White "Harabor, David-Alexandru"]
[Black "Ilinca, Felix-Antonio"]
[Result "0-1"]
[ECO "B51"]
[WhiteElo "1872"]
[BlackElo "2371"]
[Annotator "TA"]
[PlyCount "102"]
[EventDate "2024.04.10"]
[EventType "swiss"]
[EventCountry "ROU"]
[SourceTitle "playchess.com"]
[Source "ChessBase"]
[SourceQuality "1"]
[TimeControl "5400+30"]

{[%evp 10,102,37,38,66,58,70,64,68,62,64,64,95,87,80,80,89,43,35,21,27,14,38,8,22,0,0,0,7,0,6,-7,1,0,-6,0,214,-23,0,0,0,0,0,0,0,0,0,0,0,0,31,-31,-29,-27,-12,-13,-7,-10,-8,-8,-8,-43,-45,-58,-56,-59,-62,-67,-71,-134,-88,-134,-59,-59,-59,-106,-106,-135,-133,-141,-141,-162,-144,-233,-233,-234,-234,-662,-226,-226,-226,-520,-546,-29987,-29988]} 1. e4 {[%emt 0:00:03]} c5 {[%emt 0:00:42]} 2. Nf3 {[%emt 0:00:20]} d6 {[%emt 0:00:15]} 3. Bb5+ {[%emt 0:00:31]} Nd7 {[%emt 0:00:08]} 4. O-O {[%emt 0:00:33]} Ngf6 {[%emt 0:00:40]} 5. Re1 {[%emt 0:00:23]} a6 {[%emt 0:01:48]} 6. Bf1 {[%emt 0:01:36]} b5 {[%emt 0:02:01]} 7. a4 {[%emt 0:06:20]} bxa4 {[%emt 0:06:12]} 8. Nc3 {[%emt 0:02:33]} Bb7 {[%emt 0:02:09] White is slightly better.} 9. Rxa4 {[%emt 0:13:44]} (9. Nxa4 Bxe4 10. d4 cxd4 $11) 9... e5 {[%emt 0:02:48]} 10. d3 {[%emt 0:03:49]} g6 {[%emt 0:02:34]} 11. g3 {[%emt 0:00:22]} Bg7 {[%emt 0:01:10]} 12. Bg2 {[%emt 0:03:41]} O-O {[%emt 0:00:24]} 13. h3 {[%emt 0:01:06]} (13. Nd2 $16) 13... a5 $14 {[%emt 0:06:00]} 14. Bd2 {[%emt 0:04:03]} Bc6 {[%emt 0:02:27]} 15. Ra1 {[%emt 0:00:25]} a4 {[%emt 0:02:01]} 16. Ra3 {[%emt 0:05:11]} Qc7 {[%emt 0:03:41]} 17. b3 {[%emt 0:01:42]} axb3 {[%emt 0:04:07]} 18. Rxb3 {[%emt 0:00:11]} c4 {[%emt 0:01:25]} 19. Rb1 {[%emt 0:01:22]} Nc5 {[%emt 0:04:25]} 20. Qe2 {[%emt 0:06:39]} Rfb8 {[%emt 0:04:44]} 21. Rec1 {[%emt 0:12:14]} cxd3 {[%emt 0:04:51]} 22. cxd3 {[%emt 0:00:02]} Nb3 $2 {[%emt 0:00:28]} (22... Rxb1 $11 23. Rxb1 Bb7) 23. Rc2 $2 {[%emt 0:06:58]} (23. Nd5 $18 Nxc1 (23... Nxd5 $2 24. exd5 Nxc1 25. Rxc1 $18) 24. Rxc1) 23... Nd4 {[%emt 0:08:16]} (23... Nxd2 {simplifies} 24. Rxb8+ Qxb8 25. Qxd2 Bd7) 24. Rxb8+ {[%emt 0:01:33]} Qxb8 {[%emt 0:00:11]} 25. Nxd4 {[%emt 0:00:07]} exd4 {[%emt 0:00:08]} 26. Nd5 {[%emt 0:02:43]} Bxd5 {[%emt 0:05:11]} 27. exd5 {[%emt 0:00:12]} Qb1+ {[%emt 0:00:16]} 28. Rc1 {[%emt 0:05:46]} Qa2 {[%emt 0:00:50]} 29. Bf3 {[%emt 0:12:35]} Nxd5 {[%emt 0:02:29]} 30. Qe4 {[%emt 0:01:21]} ({White should play} 30. Qd1 $14) 30... Qxd2 $15 {[%emt 0:02:20]} 31. Rd1 {[%emt 0:00:02]} Qc2 {[%emt 0:00:37]} 32. Qxd5 {[%emt 0:00:23]} Ra2 {[%emt 0:00:10]} 33. Rf1 {[%emt 0:00:16]} Rb2 {[%emt 0:04:18]} 34. Qxd6 {[%emt 0:02:29]} Qxd3 $40 {[%emt 0:00:43][%mdl 128] Black is up to no good.} 35. Bd5 {[%emt 0:00:12]} (35. Re1 $5 Rb1 (35... Qxf3 36. Re8+) 36. Rxb1 Qxb1+ 37. Kg2 $11) 35... Qf5 {[%emt 0:01:12][%cal Od4d3]} 36. g4 {[%emt 0:00:42]} Qf6 {[%emt 0:03:38]} 37. Qxf6 {[%emt 0:00:24]} Bxf6 {[%emt 0:00:05][%mdl 4096] Endgame. KRB-KRB} 38. Rd1 {[%emt 0:00:16]} Bh4 {[%emt 0:00:23]} 39. Rf1 {[%emt 0:00:31]} (39. f4 $142) 39... Kg7 {[%emt 0:02:34]} (39... d3 $142 40. Rd1 d2 (40... Rxf2 41. Rxd3 Re2 42. Rf3 $15) (40... Bxf2+ 41. Kf1 $15)) 40. Kg2 {[%emt 0:00:11]} (40. Bc4 $142) 40... f5 {[%emt 0:01:23]} ({Black should try} 40... d3 $17 41. Kf3 Bg5) 41. gxf5 {[%emt 0:01:20]} gxf5 {[%emt 0:00:07]} 42. Kf3 {[%emt 0:00:02] [#]} (42. Bc4 $15 {is superior.}) 42... Rc2 $1 $17 {[%emt 0:00:41] Black has more active pieces.} 43. Be6 {[%emt 0:01:57]} Kf6 {[%emt 0:00:28]} 44. Bg8 {[%emt 0:00:06]} h6 {[%emt 0:04:04]} 45. Kg2 {[%emt 0:00:14]} Ke5 {[%emt 0:00:59]} 46. Re1+ {[%emt 0:00:14]} (46. Bb3 $17 Rb2 47. Ba4) 46... Kf4 $19 {[%emt 0:00:07]} 47. Rf1 {[%emt 0:00:07]} d3 {[%emt 0:01:25][%cal Oh4f2] White must now prevent ...Bxf2!} 48. Bd5 $2 {[%emt 0:00:17]} (48. Bb3 Ke4 49. Kg1) 48... Ke5 $2 {[%emt 0:02:45]} (48... Bxf2 49. Bb3 Re2 (49... Ke3 50. Bxc2 dxc2 51. Rc1 $11)) 49. Bf3 {[%emt 0:00:11]} Kd4 {[%emt 0:00:07][%cal Oh4f2] ...Bxf2! would now be deadly.} 50. Bh5 $2 {[%emt 0:01:06] [#]} (50. Bd1 {was the only chance.}) 50... Bxf2 $1 {[%emt 0:00:44][%mdl 512] Hoping for ...Ke3.} 51. Rxf2 {[%emt 0:00:10]} (51. Kf3 Be3) 51... Ke3 {[%emt 0:00:04] Weighted Error Value: White=0.55/Black=0.25 (precise) .  Loses game:     	---       	Black=1      Missed win:     	White=1     	---        Mistake:       	White=8     	Black=3      Inaccurate:     	White=3     	Black=2      OK:         	White=11    	Black=17     Best:        	White=1     	Black=2      Strong:       	---       	Black=1      Brilliant:      	---       	Black=1} 0-1

[Event "Romanian-ch Youth Open U14 2024"]
[Site "Eforie Nord"]
[Date "2024.04.18"]
[Round "8.2"]
[White "Costache, Andrei Eugeniu"]
[Black "Tanasie, Cosmin"]
[Result "1/2-1/2"]
[ECO "B38"]
[WhiteElo "1867"]
[BlackElo "2017"]
[Annotator "TA"]
[PlyCount "130"]
[EventDate "2024.04.10"]
[EventType "swiss"]
[EventCountry "ROU"]
[SourceTitle "playchess.com"]
[Source "ChessBase"]
[SourceQuality "1"]
[TimeControl "5400+30"]

{[%evp 30,130,59,54,54,52,54,54,69,54,62,42,53,32,31,36,47,44,51,-28,-29,-32,-14,-41,-12,-8,-24,-22,0,-19,-7,-84,-81,-112,-35,-123,-35,-47,-45,-35,0,-77,-71,-85,-72,-98,-98,-183,-181,-195,-90,-93,-88,-79,-81,-154,-151,-202,-215,-195,-149,-243,-53,-517,-509,-458,0,0,0,0,8,8,59,0,0,0,0,0,0,0,0,0,0,0,0,0,0,0,0,0,0,0,0,0,0,0,6,6,6,6,6,6,6]} 1. e4 {[%emt 0:00:02]} c5 {[%emt 0:00:05]} 2. Nf3 {[%emt 0:00:08]} Nc6 {[%emt 0:00:06]} 3. d4 {[%emt 0:00:08]} cxd4 {[%emt 0:00:05]} 4. Nxd4 {[%emt 0:00:06]} g6 {[%emt 0:00:06]} 5. c4 {[%emt 0:00:22]} Bg7 {[%emt 0:00:05]} 6. Be3 {[%emt 0:00:20]} Nf6 {[%emt 0:00:07]} 7. Nc3 {[%emt 0:00:43]} d6 {[%emt 0:00:28]} 8. Be2 {[%emt 0:00:28]} O-O {[%emt 0:00:07]} 9. O-O {[%emt 0:00:07]} Nxd4 {[%emt 0:02:15]} 10. Bxd4 {[%emt 0:00:56]} Bd7 {[%emt 0:01:20]} 11. Qd2 {[%emt 0:02:19]} Bc6 {[%emt 0:00:08]} 12. f3 {[%emt 0:01:33]} a5 {[%emt 0:00:03]} 13. b3 {[%emt 0:00:27]} Nd7 {[%emt 0:00:17]} 14. Be3 {[%emt 0:00:46]} Nc5 {[%emt 0:00:14]} 15. Rac1 {[%emt 0:01:04]} Qb6 {[%emt 0:00:59]} 16. Nb5 {[%emt 0:01:02]} Rfc8 {[%emt 0:02:45]} 17. Rfd1 {[%emt 0:00:58]} h5 {[%emt 0:02:37]} 18. Bf1 {[%emt 0:03:06]} Kh7 {[%emt 0:02:11] White is slightly better.} 19. Kh1 {[%emt 0:14:07]} Qd8 {[%emt 0:02:21]} 20. Nc3 {[%emt 0:01:13]} Qf8 {[%emt 0:00:27]} 21. Nd5 {[%emt 0:09:18]} Bxd5 {[%emt 0:05:08]} 22. Qxd5 {[%emt 0:07:22]} (22. exd5 {simplifies} Re8 23. Re1 e5 24. dxe6 Rxe6 25. Bg5) 22... Bh6 {[%emt 0:00:59]} 23. Bxh6 {[%emt 0:03:27]} Kxh6 {[%emt 0:00:05]} 24. g4 {[%emt 0:01:06]} (24. g3 $14) 24... hxg4 $11 {[%emt 0:01:04]} 25. fxg4 {[%emt 0:00:17]} Qg7 {[%emt 0:11:16]} 26. Bg2 {[%emt 0:07:24]} Kh7 {[%emt 0:02:59]} 27. Rf1 {[%emt 0:01:04]} Kg8 {[%emt 0:02:14]} 28. Rce1 {[%emt 0:01:28]} Ra6 {[%emt 0:01:46]} 29. Qg5 {[%emt 0:08:54]} e5 {[%emt 0:04:15]} 30. Qe7 {[%emt 0:04:33]} (30. Rf6 $1 $11) 30... Qf8 $1 $17 {[%emt 0:00:14]} 31. Qf6 {[%emt 0:03:27]} Re8 {[%emt 0:01:43]} (31... Nd3 $1 $17 {aiming for ...d5.} 32. Rd1 d5) 32. h4 {[%emt 0:04:13]} (32. Qh4 $15) 32... Qe7 {[%emt 0:00:12]} (32... d5 $17 33. Qf3 dxc4 (33... Nxe4 34. Qh3 $15) (33... dxe4 34. Qg3 $11) 34. bxc4 Qe7) 33. Rd1 $15 {[%emt 0:04:06]} Qxf6 {[%emt 0:00:25]} 34. Rxf6 {[%emt 0:00:04]} Ne6 {[%emt 0:00:11]} 35. Bf1 {[%emt 0:00:41]} (35. Kh2 $11) 35... Kg7 $1 $17 {[%emt 0:00:37]} 36. Rf2 {[%emt 0:01:25][%cal Oc4c5]} Rb6 {[%emt 0:02:01][%cal Oa5a4]} 37. Kh2 {[%emt 0:07:19]} a4 {[%emt 0:00:35]} 38. b4 {[%emt 0:01:12]} (38. Rb1 $17) 38... Rxb4 $19 {[%emt 0:01:01]} 39. Rxd6 {[%emt 0:01:07]} Rd8 {[%emt 0:00:50] Prevents Rd7} (39... Nc5 $1 $19 {[%cal Rc5e4] has better winning chances.} 40. Bd3 a3) 40. Rd5 $17 {[%emt 0:00:25]} Rxd5 {[%emt 0:15:28]} 41. exd5 {[%emt 0:00:12][%mdl 4096] Endgame. KRB-KRN} Nc5 {[%emt 0:00:12]} 42. g5 {[%emt 0:04:00]} ({White should try} 42. Kh3) 42... a3 {[%emt 0:05:05] ...Rb2 would now be deadly.} 43. d6 {[%emt 0:01:41] [#]} (43. Kh3 $17) 43... Rb2 $1 $19 {[%emt 0:00:51]} 44. Kg1 {[%emt 0:00:55]} Kf8 {[%emt 0:03:05]} (44... Rxf2 45. Kxf2 Ne4+ 46. Kf3 Nxd6 47. c5) (44... e4 $19 45. Kg2 (45. h5 $2 gxh5 46. g6 Kxg6 $19) 45... Kf8) 45. Bh3 {[%emt 0:01:17]} (45. Bg2 $17 e4 46. d7 Nxd7 47. Bxe4) 45... Ke8 $2 {[%emt 0:11:09]} (45... Rxf2 $19 46. Kxf2 Na6 (46... Ne4+ 47. Ke2 $11)) 46. Kf1 $2 {[%emt 0:01:20][%mdl 8192]} (46. Bg4 $1 $15) 46... Rxf2+ {[%emt 0:07:56]} 47. Kxf2 {[%emt 0:00:09] [#] KB-KN} Ne4+ $2 {[%emt 0:00:04]} ({Better is} 47... Nd3+ $1 $19 48. Ke3 Nb4) 48. Ke3 $11 {[%emt 0:01:20]} Nxd6 {[%emt 0:02:03]} 49. c5 {[%emt 0:00:57]} Nf5+ {[%emt 0:01:26]} 50. Ke4 {[%emt 0:01:27]} Nxh4 {[%emt 0:01:13]} (50... Nd4 $1 $11) 51. Kxe5 {[%emt 0:00:24]} (51. Bc8 $1 $14) 51... Ke7 {[%emt 0:01:44] The position is equal.} 52. Kf4 {[%emt 0:02:22] Inhibits Nf3.} f6 {[%emt 0:02:40]} 53. gxf6+ {[%emt 0:00:45]} Kxf6 {[%emt 0:00:02]} 54. Bc8 {[%emt 0:00:28]} g5+ {[%emt 0:00:33]} 55. Ke4 {[%emt 0:01:08]} Ng6 {[%emt 0:01:06]} 56. Bxb7 {[%emt 0:00:27] Threatens to win with c6.} Nf8 {[%emt 0:01:38]} 57. Bc8 {[%emt 0:00:39]} (57. c6 $5 Ne6 $8 58. Bc8 $11) 57... Ke7 {[%emt 0:01:51]} 58. Kf5 {[%emt 0:00:30]} Kd8 {[%emt 0:00:09]} 59. Ba6 {[%emt 0:00:15]} Nd7 {[%emt 0:01:01]} 60. Kxg5 {[%emt 0:00:26]} Nxc5 {[%emt 0:00:05]} 61. Bc4 {[%emt 0:00:11]} Kc7 {[%emt 0:07:18]} 62. Kf4 {[%emt 0:00:27]} Kc6 {[%emt 0:00:00]} 63. Ke3 {[%emt 0:00:28]} Nd7 {[%emt 0:00:00]} 64. Kd2 {[%emt 0:00:19]} Kc5 {[%emt 0:00:00]} 65. Kc3 {[%emt 0:00:17]} Nb6 {[%emt 0:02:00] And White is the lucky defender.   Weighted Error Value: White=0.34/Black=0.24 (precise) .  Loses game:     	White=1     	---        Missed win:     	---       	Black=2      Mistake:       	White=9     	Black=5      Inaccurate:     	White=2     	Black=2      OK:         	White=19    	Black=19     Best:        	White=2     	Black=3      Strong:       	---       	Black=2} 1/2-1/2

[Event "Romanian-ch Youth Open U14 2024"]
[Site "Eforie Nord"]
[Date "2024.04.19"]
[Round "9.1"]
[White "Ilinca, Felix-Antonio"]
[Black "Costache, Andrei Eugeniu"]
[Result "1-0"]
[ECO "B90"]
[WhiteElo "2371"]
[BlackElo "1867"]
[Annotator "TA"]
[PlyCount "137"]
[EventDate "2024.04.10"]
[EventType "swiss"]
[EventCountry "ROU"]
[SourceTitle "playchess.com"]
[Source "ChessBase"]
[SourceQuality "1"]
[TimeControl "5400+30"]

{[%evp 14,137,21,16,9,9,22,11,0,0,17,0,0,-11,25,41,59,41,35,-13,-14,0,0,-89,-39,-60,-39,-86,-38,-43,-37,-43,44,30,123,141,242,226,373,104,81,73,54,62,64,60,60,33,301,277,282,271,254,55,60,52,49,62,76,62,54,60,50,50,52,64,92,94,110,85,79,56,50,70,163,156,208,200,212,162,178,177,214,129,129,89,133,106,955,768,1011,854,2335,1462,2909,1303,7781,6562,5144,4602,8401,7665,29965,29944,29970,29971,29971,29973,29975,29976,29978,29979,29980,29981,29980,29981,29981,29982,29983,29982,29981,29982,29982,29983,29983,29984]} 1. e4 {[%emt 0:00:52]} c5 {[%emt 0:00:09]} 2. Nf3 {[%emt 0:00:24]} d6 {[%emt 0:00:09]} 3. d4 {[%emt 0:00:43]} cxd4 {[%emt 0:00:09]} 4. Nxd4 {[%emt 0:00:19]} Nf6 {[%emt 0:00:30]} 5. Nc3 {[%emt 0:00:10]} a6 {[%emt 0:00:07]} 6. Rg1 {[%emt 0:01:42]} e5 {[%emt 0:02:09]} 7. Nb3 {[%emt 0:00:21] B90: Sicilian Najdorf: Unusual White 6th moves, 6 Be3 Ng4 and 6 Be3 e5.} h5 {[%emt 0:00:10]} 8. Be3 {[%emt 0:00:46]} Be6 {[%emt 0:00:43]} 9. h3 {[%emt 0:00:33]} Nbd7 {[%emt 0:02:20]} 10. Qd2 {[%emt 0:00:22]} b5 {[%emt 0:01:24]} 11. O-O-O {[%emt 0:06:58]} Qc7 $146 {[%emt 0:02:51]} ({Predecessor:} 11... Rc8 12. f4 Qc7 13. Kb1 Nb6 14. f5 Nc4 15. Bxc4 Bxc4 16. Nd5 Bxd5 17. exd5 h4 {½-½ Alvarez Calzadilla,J (2327)-Cardoso Cardoso,J (2468) Barcelona Sants op 24th 2023 (5)}) 12. Nd5 {[%emt 0:03:20]} (12. f4 $5) 12... Bxd5 {[%emt 0:04:33]} 13. exd5 {[%emt 0:00:10]} Rc8 {[%emt 0:02:31]} 14. Kb1 $1 {[%emt 0:06:18]} Nb6 {[%emt 0:06:05]} 15. Bxb6 {[%emt 0:02:05]} Qxb6 {[%emt 0:00:07]} 16. Bd3 {[%emt 0:00:35]} (16. f4 $14) 16... g6 $11 {[%emt 0:06:49]} 17. f4 {[%emt 0:07:55]} Bh6 {[%emt 0:02:45]} (17... Nxd5 $6 18. fxe5 Bh6 19. Bxb5+ Qxb5 20. Qxd5 Qxd5 (20... dxe5 $2 21. Qd6 $18) 21. Rxd5 dxe5 22. Rxe5+ Kf8 23. Rf1 $16) 18. Qe2 {[%emt 0:05:33]} (18. g3 $11) 18... O-O {[%emt 0:14:21]} (18... Bxf4 $17 19. Rgf1 Bg5 (19... Nxd5 20. g3 $14)) 19. fxe5 {[%emt 0:02:52]} dxe5 {[%emt 0:02:58]} 20. Qf3 {[%emt 0:07:23]} (20. Rgf1 $15) 20... a5 {[%emt 0:06:27]} (20... Rfd8 $17 21. g4 hxg4 (21... Rxd5 22. Rdf1 $17) (21... Nxd5 22. gxh5 Nf4 23. hxg6 $16) 22. hxg4 Nxd5 (22... Rxd5 23. g5 $11)) 21. d6 $15 {[%emt 0:06:08]} Bg7 {[%emt 0:01:29]} (21... Qxd6 $6 22. Bxg6 (22. Nxa5 Qb6 $17) 22... Qb6 23. Bf5 $16 (23. Bxh5 $2 a4 $19)) 22. Nd2 $1 {[%emt 0:02:31]} Nd7 {[%emt 0:06:35]} (22... Rfd8 $15) 23. g4 $14 {[%emt 0:03:49]} h4 {[%emt 0:01:16]} (23... hxg4 $1 $11 {keeps the balance.} 24. hxg4 Qxd6) 24. Ne4 $16 {[%emt 0:02:26]} a4 {[%emt 0:02:39]} (24... Nc5 $16 {is a better defense.}) 25. g5 $18 {[%emt 0:06:38]} Qc6 {[%emt 0:16:04]} (25... Rc6 $142 26. Rg4 Nc5) 26. Qf2 $2 {[%emt 0:03:21]} (26. Qe2 $18 {is more deadly.}) 26... Nc5 $16 {[%emt 0:03:25]} 27. Nf6+ {[%emt 0:04:00]} (27. Qxh4 Nxd3 28. cxd3 Qc2+ 29. Ka1 a3 30. bxa3 Qa4 $11) (27. Nxc5 {simplifies} Qxc5 28. Qxc5 Rxc5 29. Be2) 27... Bxf6 {[%emt 0:00:32]} 28. gxf6 {[%emt 0:00:42]} Nxd3 $1 {[%emt 0:00:25]} 29. Rxd3 {[%emt 0:00:31]} Qc5 $1 {[%emt 0:08:11]} 30. Qg2 {[%emt 0:01:26]} (30. Qxc5 Rxc5 31. d7 Rd8 $17) 30... e4 $2 {[%emt 0:01:15][%mdl 8192]} (30... Rfd8 $1 $14) 31. Rdd1 $18 {[%emt 0:00:28]} Qe5 {[%emt 0:00:32]} 32. d7 {[%emt 0:01:16]} Rb8 {[%emt 0:01:58]} 33. Qf2 $2 {[%emt 0:03:15]} ({White should try} 33. Rge1 $18) 33... b4 $1 $14 {[%emt 0:00:16]} 34. Qd4 {[%emt 0:03:14]} (34. Qxh4 a3 35. Kc1 b3 (35... Qxb2+ $2 36. Kd2 $19) (35... axb2+ $2 36. Kb1 $18) 36. axb3 a2 $19 (36... Qxb2+ $2 37. Kd2 $19)) 34... Qxd4 {[%emt 0:00:47]} 35. Rxd4 {[%emt 0:00:05]} Rfd8 {[%emt 0:00:05]} 36. Re1 {[%emt 0:01:29]} (36. Rxe4 Rxd7 37. Rxh4 Rd2 $11) 36... Rb7 {[%emt 0:00:33]} 37. Rexe4 {[%emt 0:00:58]} Rbxd7 {[%emt 0:00:38]} 38. Rxd7 {[%emt 0:00:25]} Rxd7 {[%emt 0:00:04]} 39. Kc1 $1 {[%emt 0:00:09]} Rd6 {[%emt 0:01:39]} 40. Rxb4 {[%emt 0:00:43]} Rxf6 {[%emt 0:00:12]} 41. Rxh4 {[%emt 0:00:20]} Rf1+ {[%emt 0:00:57]} 42. Kd2 {[%emt 0:00:06]} a3 {[%emt 0:00:54]} 43. bxa3 {[%emt 0:02:52]} Ra1 {[%emt 0:00:08]} ({Black should play} 43... Rf3 $1 $14) 44. Kc3 {[%emt 0:00:09]} Rxa2 {[%emt 0:00:08]} (44... f5 $16 45. a4 Rxa2) 45. Kb3 $18 {[%emt 0:00:08]} Ra1 {[%emt 0:00:06]} 46. Kb2 {[%emt 0:00:07]} Re1 {[%emt 0:00:22]} 47. a4 {[%emt 0:00:07]} Re5 {[%emt 0:00:41]} 48. Rg4 {[%emt 0:01:40]} Kg7 {[%emt 0:00:15]} 49. Rg1 {[%emt 0:00:14]} f5 {[%emt 0:00:14]} 50. Ra1 {[%emt 0:00:34]} f4 $2 {[%emt 0:00:48][%mdl 8192]} (50... Re3 $16) 51. a5 $18 {[%emt 0:00:13]} f3 {[%emt 0:00:10]} 52. a6 {[%emt 0:00:17]} f2 {[%emt 0:00:14]} 53. a7 {[%emt 0:00:37]} Re8 {[%emt 0:01:28]} 54. Rf1 {[%emt 0:00:29]} ({Inferior is} 54. a8=R Rxa8 55. Rf1 Rf8 $11) 54... Ra8 {[%emt 0:00:08]} 55. Rxf2 {[%emt 0:00:06]} Rxa7 {[%emt 0:00:02]} 56. c4 {[%emt 0:00:23]} Re7 {[%emt 0:01:37] [#]} 57. Rf3 $1 {[%emt 0:01:25]} Re1 {[%emt 0:00:50]} 58. Kb3 {[%emt 0:01:13]} Rb1+ {[%emt 0:02:14]} 59. Ka4 {[%emt 0:00:19]} Kh6 {[%emt 0:00:17]} 60. c5 {[%emt 0:00:21]} Kh5 {[%emt 0:00:23]} 61. Rc3 {[%emt 0:00:44]} g5 {[%emt 0:00:17]} 62. c6 {[%emt 0:00:21]} Rb8 {[%emt 0:00:05]} 63. c7 {[%emt 0:00:15]} Rc8 {[%emt 0:00:11]} 64. Kb5 {[%emt 0:00:07]} Kh4 {[%emt 0:00:05]} 65. Kb6 {[%emt 0:00:05]} Rh8 {[%emt 0:00:18]} 66. Kb7 {[%emt 0:00:14]} Rh7 {[%emt 0:00:04]} 67. Kb8 {[%emt 0:00:09]} Rh8+ {[%emt 0:00:05]} 68. c8=Q {[%emt 0:00:08]} Rxc8+ {[%emt 0:00:02]} 69. Kxc8 {[%emt 0:18:22]} 1-0